bitfinex-derivatives/quotes_SOLF0:USTF0_20260211
["timestamp","ask_amount","ask_price","bid_price","bid_amount"]
[1770824936476,10.72311936,79.68,79.611,7.39975673]
[1770824937578,10.72311936,79.68,79.592,7.39756677]
[1770824937879,10.72311936,79.67,79.592,7.39756677]
[1770824938175,11.3003,79.68,79.614,7.39756677]
[1770824938383,10.72311936,79.7,79.614,7.39756677]
[1770824939380,11.2992,79.688,79.627,11.3077]
[1770824939582,10.72311936,79.68,79.614,7.39756677]
[1770824940179,10.72311936,79.69,79.618,7.39141534]
[1770824940780,10.72311936,79.69,79.63,7.31569906]
[1770824941174,11.3001,79.681,79.63,7.31569906]
[1770824941679,22.02191936,79.69,79.628,11.3076]
[1770824942279,148.12,79.708,79.642,7.31609011]
[1770824942785,11.2966,79.706,79.65,11.3045]
[1770824943082,10.72311936,79.73,79.651,7.27064653]
[1770824943477,11.2936,79.727,79.67,11.3016]
[1770824943880,10.72311936,79.75,79.697,11.2977]
[1770824944078,11.2889,79.76,79.698,7.27101306]
[1770824944474,10.72311936,79.77,79.698,7.27101306]
[1770824944776,10.72311936,79.75,79.661,7.26061321]
[1770824944982,10.79491408,79.74,79.661,7.26061321]
[1770824945182,10.79491408,79.74,79.688,11.299]
[1770824945371,10.79491408,79.74,79.639,175.8723]
[1770824945372,9.58473613,79.768,79.691,7.26097483]
[1770824945574,10.79491408,79.78,79.691,7.26097483]
[1770824946081,11.2853,79.786,79.719,7.26097483]
[1770824946480,10.79491408,79.8,79.719,7.26097483]
[1770824946681,11.2864,79.778,79.724,11.2939]
[1770824946875,10.79491408,79.8,79.644,175.8595]
[1770824946876,10.79491408,79.78,79.699,7.27289641]
[1770824947179,10.79491408,79.76,79.699,7.27289641]
[1770824947375,159.21491408,79.78,79.699,7.27289641]
[1770824947576,159.21491408,79.78,79.68,10.79491408]
[1770824947577,159.21491408,79.78,79.701,7.27324495]
[1770824947775,11.56003542,79.815,79.701,7.27324495]
[1770824947978,11.2848,79.789,79.731,11.2929]
[1770824948576,11.2862,79.779,79.721,11.2943]
[1770824948978,10.79491408,79.77,79.701,7.25138547]
[1770824949184,11.2893,79.758,79.701,7.25138547]
[1770824949374,10.79491408,79.75,79.683,7.25171574]
[1770824949875,10.79491408,79.77,79.683,7.25171574]
[1770824950078,10.79491408,79.75,79.683,7.25171574]
[1770824950276,10.79491408,79.77,79.697,7.25753242]
[1770824950781,11.289,79.76,79.703,11.2969]
[1770824951585,10.79491408,79.73,79.655,7.25785815]
[1770824951880,10.79491408,79.74,79.655,7.25785815]
[1770824952086,10.79491408,79.74,79.688,11.299]
[1770824952281,10.79491408,79.74,79.689,7.27036965]
[1770824952586,10.79491408,79.76,79.706,11.2965]
[1770824952790,148.86,79.773,79.689,7.27036965]
[1770824953090,10.79491408,79.77,79.689,7.27036965]
[1770824953786,11.2877,79.769,79.71,7.27070147]
[1770824954182,10.79491408,79.77,79.681,7.27070147]
[1770824954386,10.79491408,79.79,79.619,175.9158]
[1770824954387,10.79491408,79.73,79.661,7.25969947]
[1770824955278,11.2934,79.729,79.661,7.25969947]
[1770824955682,11.2934,79.729,79.664,11.3024]
[1770824955885,11.2934,79.729,79.619,331.1758]
[1770824955886,10.79491408,79.71,79.621,7.26001673]
[1770824956388,11.2933,79.729,79.668,7.26001673]
[1770824957786,11.2933,79.729,79.675,11.3009]
[1770824958288,10.79491408,79.73,79.648,7.08411258]
[1770824958490,10.79491408,79.71,79.648,7.08411258]
[1770824958889,11.297,79.703,79.649,11.3046]
[1770824959285,10.79491408,79.69,79.616,483.55103888]
[1770824959492,10.79491408,79.69,79.617,7.08438204]
[1770824959688,10.79491408,79.71,79.641,7.08438204]
[1770824960289,11.2979,79.697,79.65,11.3044]
[1770824960488,11.2979,79.697,79.641,7.08438204]
[1770824960688,10.79491408,79.69,79.617,7.08186278]
[1770824960891,10.79491408,79.69,79.631,11.3072]
[1770824961894,11.3017,79.67,79.617,7.08186278]
[1770824962789,10.79491408,79.67,79.598,7.0802141]
[1770824963790,10.79491408,79.67,79.615,11.3094]
[1770824964193,10.79491408,79.67,79.598,7.0802141]
[1770824964194,11.3047,79.649,79.598,7.0802141]
[1770824964395,10.79491408,79.67,79.598,7.0802141]
[1770824964791,10.79491408,79.67,79.57,10.79491408]
[1770824964792,10.79491408,79.67,79.6,7.33479398]
[1770824965191,11.3028,79.663,79.61,11.31]
[1770824965393,11.3028,79.663,79.611,7.33506957]
[1770824965594,10.79491408,79.67,79.611,7.33506957]
[1770824966198,10.79491408,79.67,79.616,11.3092]
[1770824966199,11.3019,79.669,79.616,11.3092]
[1770824966399,11.3019,79.669,79.59,10.79491408]
[1770824966400,10.79491408,79.69,79.617,7.29956824]
[1770824966590,10.79491408,79.69,79.642,11.3056]
[1770824966791,11.2981,79.695,79.642,11.3056]
[1770824966991,11.2981,79.695,79.643,7.29956824]
[1770824967695,10.79491408,79.69,79.637,11.3062]
[1770824967896,10.79491408,79.69,79.625,7.29982643]
[1770824968197,11.299,79.689,79.636,11.3064]
[1770824968397,10.79491408,79.71,79.636,7.35250489]
[1770824968599,10.79491408,79.69,79.618,7.35250489]
[1770824969293,10.79491408,79.67,79.602,7.35250489]
[1770824969502,10.79491408,79.68,79.602,7.35250489]
[1770824970696,11.3011,79.674,79.619,18.66262343]
[1770824971202,11.3011,79.674,79.62,7.35382343]
[1770824971899,11.3011,79.674,79.57,10.79491408]
[1770824971900,10.79491408,79.66,79.581,7.35407401]
[1770824972206,10.79491408,79.68,79.581,7.35407401]
[1770824972502,10.79491408,79.68,79.603,7.38705347]
[1770824973907,11.3019,79.668,79.612,11.3098]
[1770824974303,10.79491408,79.68,79.612,11.3098]
[1770824974500,10.79491408,79.68,79.603,7.38705347]
[1770824975005,11.3004,79.679,79.633,11.3068]
[1770824975208,10.79491408,79.7,79.621,7.3234925]
[1770824976101,10.79491408,79.68,79.621,7.3234925]
[1770824976418,10.79491408,79.68,79.604,7.32372827]
[1770824976707,11.3023,79.666,79.612,11.3098]
[1770824977105,10.79491408,79.66,79.576,7.42908691]
[1770824977401,11.3046,79.65,79.6,11.3115]
[1770824977798,11.3065,79.636,79.593,7.42908691]
[1770824978010,10.79491408,79.66,79.593,7.42908691]
[1770824978505,11.3036,79.656,79.608,11.3104]
[1770824979095,11.3022,79.667,79.617,11.3091]
[1770824979294,10.79491408,79.68,79.618,7.44489342]
[1770824979494,11.3008,79.676,79.628,11.3075]
[1770824981206,10.79491408,79.68,79.618,7.44489342]
[1770824982205,10.79491408,79.66,79.591,7.44146417]
[1770824982601,10.79491408,79.66,79.606,11.3106]
[1770824982800,10.79491408,79.66,79.591,7.44146417]
[1770824982801,10.79491408,79.68,79.591,7.44146417]
[1770824983205,10.79491408,79.68,79.608,7.45608589]
[1770824983509,10.79491408,79.66,79.571,7.45631456]
[1770824983906,10.79491408,79.64,79.57,7.45631456]
[1770824984112,10.79491408,79.65,79.57,7.45631456]
[1770824984403,10.79491408,79.65,79.54,176.0905]
[1770824984404,10.79491408,79.6,79.559,2.18579235]
[1770824984605,10.79491408,79.6,79.536,7.45631456]
[1770824984806,11.3077,79.628,79.552,7.62961588]
[1770824985012,114.34,79.649,79.552,7.62961588]
[1770824985013,10.79491408,79.62,79.552,7.62961588]
[1770824985312,11.3105,79.608,79.552,7.62961588]
[1770824985711,148.74,79.645,79.532,7.62984687]
[1770824985712,10.79491408,79.6,79.532,7.62984687]
[1770824985909,10.79491408,79.6,79.537,11.3205]
[1770824986613,115.6,79.626,79.544,7.82182779]
[1770824986614,11.3102,79.61,79.544,7.82182779]
[1770824987011,175.7658,79.688,79.562,7.82182779]
[1770824987012,10.79491408,79.63,79.562,7.82182779]
[1770824987610,10.79491408,79.61,79.542,7.82207736]
[1770824988116,10.79491408,79.61,79.552,7.82207736]
[1770824989221,10.79491408,79.6,79.537,7.75427563]
[1770824989417,10.79491408,79.6,79.518,7.75451024]
[1770824989713,10.79491408,79.58,79.519,7.75451024]
[1770824990317,10.79491408,79.58,79.49,10.79491408]
[1770824990508,10.79491408,79.58,79.503,7.73421567]
[1770824991217,11.3148,79.578,79.516,11.3234]
[1770824991423,10.79491408,79.58,79.52,7.73219976]
[1770824991917,11.3158,79.571,79.514,11.3237]
[1770824992318,10.79491408,79.56,79.5,7.73219976]
[1770824992617,148.34,79.587,79.5,7.73219976]
[1770824992813,10.79491408,79.57,79.5,7.73219976]
[1770824993319,10.79491408,79.57,79.501,11.3255]
[1770824994018,10.79491408,79.57,79.47,10.79491408]
[1770824994019,10.79491408,79.57,79.504,7.71873319]
[1770824996816,11.3173,79.56,79.505,11.3251]
[1770824997223,10.79491408,79.57,79.486,7.73048792]
[1770824997410,10.79491408,79.56,79.496,7.73072696]
[1770824998126,10.79491408,79.56,79.5,11.3257]
[1770824998422,10.79491408,79.56,79.501,7.73072696]
[1770824998615,11.3174,79.559,79.501,7.73072696]
[1770824998820,10.79491408,79.56,79.501,7.73072696]
[1770824999414,11.3175,79.559,79.503,11.3253]
[1770825000227,148.54,79.577,79.501,7.73072696]
[1770825000518,10.79491408,79.58,79.501,7.73072696]
[1770825000723,10.79491408,79.58,79.485,176.2116]
[1770825000724,10.79491408,79.58,79.524,11.3223]
[1770825001323,11.3174,79.559,79.504,11.3251]
[1770825002020,10.79491408,79.56,79.485,7.72397612]
[1770825002615,127.16,79.582,79.485,7.72397612]
[1770825002820,10.79491408,79.55,79.485,7.72397612]
[1770825003626,10.79491408,79.57,79.502,7.696616]
[1770825004230,11.3171,79.562,79.508,11.3247]
[1770825004525,10.79491408,79.55,79.486,7.68132087]
[1770825005025,10.84618305,79.55,79.486,7.68132087]
[1770825005220,10.84618305,79.55,79.506,11.3248]
[1770825005426,10.84618305,79.55,79.503,7.68132087]
[1770825005427,10.84618305,79.57,79.507,7.68152597]
[1770825005824,11.3173,79.56,79.514,11.3238]
[1770825006017,10.84618305,79.57,79.514,11.3238]
[1770825006222,10.84618305,79.57,79.507,7.68152597]
[1770825006423,11.3161,79.569,79.507,7.68152597]
[1770825007116,11.3161,79.569,79.518,11.3232]
[1770825007322,10.84618305,79.57,79.518,7.68482524]
[1770825007825,10.84618305,79.59,79.518,7.68482524]
[1770825008320,10.84618305,79.59,79.542,11.3197]
[1770825008527,11.56003542,79.629,79.5,10.84618305]
[1770825008528,10.84618305,79.6,79.501,7.71583275]
[1770825009026,9.54259261,79.621,79.497,7.71583275]
[1770825009027,10.84618305,79.56,79.497,7.71583275]
[1770825009222,10.84618305,79.57,79.497,7.71583275]
[1770825009728,11.3191,79.548,79.497,7.71583275]
[1770825009929,100.32,79.59,79.497,7.71583275]
[1770825009930,10.84618305,79.58,79.497,7.71583275]
[1770825010130,10.84618305,79.56,79.497,7.71583275]
[1770825010333,11.3157,79.571,79.512,11.3241]
[1770825010519,10.84618305,79.57,79.497,7.71583275]
[1770825010724,10.84618305,79.55,79.471,7.70456882]
[1770825010925,10.84618305,79.55,79.492,11.3269]
[1770825011222,10.84618305,79.55,79.46,7.70456882]
[1770825011928,10.84618305,79.55,79.424,213.7875]
[1770825011929,10.84618305,79.53,79.431,7.70478331]
[1770825012233,10.84618305,79.51,79.431,7.70478331]
[1770825012424,11.3245,79.509,79.452,11.3325]
[1770825012826,10.84618305,79.51,79.431,7.70478331]
[1770825013020,10.84618305,79.49,79.431,7.70478331]
[1770825013435,10.84618305,79.47,79.413,7.74270227]
[1770825013822,11.3284,79.482,79.425,11.3364]
[1770825014025,10.84618305,79.46,79.389,7.74270227]
[1770825014322,11.3317,79.459,79.389,7.74270227]
[1770825014932,11.3329,79.45,79.389,7.74270227]
[1770825015245,10.84618305,79.44,79.341,7.69664519]
[1770825016028,10.84618305,79.42,79.341,7.69664519]
[1770825016229,10.84618305,79.43,79.341,7.69664519]
[1770825016634,11.3372,79.421,79.35,7.73559063]
[1770825016834,10.84618305,79.41,79.35,7.73559063]
[1770825017230,11.3403,79.399,79.35,7.73559063]
[1770825017428,10.84618305,79.39,79.33,7.73578809]
[1770825017628,10.84618305,79.37,79.307,7.73578809]
[1770825017831,10.84618305,79.37,79.31,11.3529]
[1770825018225,10.84618305,79.43,79.307,7.73578809]
[1770825018226,10.84618305,79.39,79.307,7.73578809]
[1770825018426,10.84618305,79.39,79.33,11.35]
[1770825018628,10.84618305,79.39,79.324,7.70117148]
[1770825018931,22.18778305,79.39,79.324,7.70117148]
[1770825019126,10.84618305,79.39,79.324,7.70117148]
[1770825019326,10.84618305,79.39,79.33,7.70139053]
[1770825019625,10.84618305,79.43,79.346,7.70139053]
[1770825019826,10.84618305,79.41,79.346,7.70139053]
[1770825020036,10.84618305,79.39,79.326,7.70139053]
[1770825020635,10.84618305,79.39,79.33,7.6590388]
[1770825021039,10.84618305,79.39,79.3,10.84618305]
[1770825021040,10.84618305,79.39,79.313,11.3524]
[1770825021333,10.84618305,79.35,79.289,7.6590388]
[1770825021539,11.3449,79.367,79.3,11.3543]
[1770825021939,10.84618305,79.38,79.301,11.20227107]
[1770825022136,10.84618305,79.4,79.328,11.20227107]
[1770825022344,10.84618305,79.38,79.291,11.43026462]
[1770825022532,10.84618305,79.37,79.291,11.43026462]
[1770825022940,10.84618305,79.39,79.311,11.43026462]
[1770825023535,10.84618305,79.39,79.29,10.84618305]
[1770825023536,10.84618305,79.39,79.323,11.43128393]
[1770825023737,10.84618305,79.37,79.281,11.43128393]
[1770825023937,10.84618305,79.35,79.281,11.43128393]
[1770825024144,10.84618305,79.35,79.29,11.3558]
[1770825024344,10.84618305,79.35,79.281,11.43128393]
[1770825024838,10.84618305,79.41,79.321,11.42425962]
[1770825025232,10.84618305,79.41,79.336,11.42425962]
[1770825025838,22.18488305,79.41,79.34,22.77251548]
[1770825026040,22.18488305,79.41,79.34,11.42391548]
[1770825026241,10.84618305,79.41,79.352,11.3468]
[1770825026437,11.3371,79.421,79.353,10.94835122]
[1770825026633,148.22,79.454,79.353,10.94835122]
[1770825026960,10.84618305,79.45,79.353,10.94835122]
[1770825027440,176.1756,79.502,79.371,10.9464209]
[1770825027746,10.84618305,79.46,79.371,10.9464209]
[1770825028043,10.84618305,79.46,79.392,10.9464209]
[1770825028242,10.84618305,79.46,79.372,11.0055329]
[1770825028433,10.84618305,79.5,79.372,11.0055329]
[1770825028638,10.84618305,79.47,79.372,11.0055329]
[1770825029246,10.84618305,79.47,79.392,11.0055329]
[1770825030039,10.84618305,79.5,79.415,11.00528431]
[1770825030742,10.84618305,79.5,79.433,11.03061114]
[1770825031041,10.84618305,79.54,79.451,11.03061114]
[1770825031251,10.84618305,79.52,79.458,11.3317]
[1770825031443,10.84618305,79.52,79.451,11.03061114]
[1770825031840,11.3216,79.53,79.463,11.331]
[1770825032042,10.84618305,79.52,79.451,11.03061114]
[1770825032744,11.3233,79.518,79.452,11.3325]
[1770825032950,10.84618305,79.52,79.433,10.97995841]
[1770825033644,11.3247,79.508,79.448,11.3332]
[1770825033844,10.84618305,79.5,79.433,10.97995841]
[1770825034046,10.84618305,79.52,79.433,10.97995841]
[1770825034246,10.84618305,79.5,79.433,10.97995841]
[1770825034444,10.84618305,79.52,79.433,10.97995841]
[1770825034751,10.84618305,79.54,79.484,11.328]
[1770825034952,10.84618305,79.54,79.469,11.05210438]
[1770825035446,10.84618305,79.51,79.429,11.05188187]
[1770825035642,10.84618305,79.5,79.429,11.05188187]
[1770825036445,100.46,79.516,79.429,11.05188187]
[1770825036446,10.84618305,79.48,79.429,11.05188187]
[1770825036952,10.84618305,79.48,79.39,10.84618305]
[1770825036953,10.84618305,79.48,79.408,11.07197928]
[1770825037140,10.84618305,79.46,79.383,11.07197928]
[1770825037340,11.3317,79.459,79.398,11.3403]
[1770825037555,10.84618305,79.46,79.398,11.3403]
[1770825037950,10.84618305,79.46,79.383,11.07197928]
[1770825037951,22.17778305,79.46,79.386,11.342]
[1770825038152,10.84618305,79.44,79.386,11.342]
[1770825038555,10.84618305,79.44,79.383,11.07197928]
[1770825038852,10.84618305,79.46,79.398,11.07926771]
[1770825039054,10.84618305,79.44,79.379,11.07926771]
[1770825040247,11.3346,79.439,79.379,11.07926771]
[1770825040856,11.3346,79.439,79.381,11.3427]
[1770825041056,11.3346,79.439,79.379,11.07926771]
[1770825041356,10.84618305,79.44,79.389,11.3415]
[1770825041546,10.84618305,79.44,79.39,11.07897508]
[1770825042354,10.84618305,79.46,79.39,11.07897508]
[1770825043463,10.84618305,79.48,79.391,11.08901578]
[1770825043959,10.84618305,79.48,79.422,11.3369]
[1770825044353,10.84618305,79.46,79.391,11.08901578]
[1770825044558,10.84618305,79.46,79.411,11.3384]
[1770825045854,10.84618305,79.46,79.391,11.08901578]
[1770825046161,176.1676,79.506,79.391,11.08901578]
[1770825046162,10.84618305,79.48,79.391,11.08901578]
[1770825047153,11.3302,79.47,79.391,11.08901578]
[1770825047656,10.84618305,79.46,79.41,11.3386]
[1770825047964,10.84618305,79.46,79.391,11.08901578]
[1770825048759,10.84618305,79.46,79.419,11.3373]
[1770825048958,10.84618305,79.46,79.391,11.08901578]
[1770825050162,10.84618305,79.46,79.363,140.26]
[1770825050362,10.84618305,79.44,79.364,11.01936277]
[1770825051666,10.84618305,79.44,79.389,11.3416]
[1770825052265,10.84618305,79.44,79.4,11.34]
[1770825052769,10.84618305,79.44,79.389,11.3415]
[1770825053164,10.84618305,79.44,79.341,10.97380493]
[1770825053560,9.71038514,79.461,79.364,10.97361605]
[1770825053767,10.84618305,79.45,79.364,10.97361605]
[1770825053963,10.84618305,79.47,79.408,10.97361605]
[1770825055274,9.70791495,79.498,79.408,10.97361605]
[1770825055570,11.3303,79.469,79.408,10.97361605]
[1770825056074,9.70791495,79.499,79.424,10.95815469]
[1770825056268,10.84618305,79.5,79.424,10.95815469]
[1770825056462,10.84618305,79.48,79.422,11.3369]
[1770825056868,11.3289,79.479,79.401,10.93169372]
[1770825058276,11.3289,79.479,79.433,11.3352]
[1770825058570,11.43212342,79.511,79.419,10.93150278]
[1770825058571,10.84618305,79.5,79.419,10.93150278]
[1770825059169,11.3263,79.497,79.448,11.3331]
[1770825059365,11.43212342,79.54,79.436,10.93154801]
[1770825059681,175.9993,79.582,79.408,176.3838]
[1770825059682,11.3217,79.529,79.479,11.3288]
[1770825059872,10.84618305,79.53,79.46,10.93137077]
[1770825061479,10.84618305,79.51,79.441,10.93266369]
[1770825061680,176.0743,79.548,79.401,10.93266369]
[1770825061681,10.84618305,79.49,79.401,10.93266369]
[1770825061981,10.84618305,79.49,79.404,10.93266369]
[1770825062182,22.17338305,79.49,79.438,11.3346]
[1770825062782,10.84618305,79.47,79.408,10.95251555]
[1770825063281,11.3313,79.462,79.408,10.95251555]
[1770825063584,10.84618305,79.47,79.408,10.95251555]
[1770825063879,10.84618305,79.46,79.381,10.95234594]
[1770825064882,10.87071325,79.46,79.381,10.95234594]
[1770825065278,37.78,79.499,79.372,100.46]
[1770825065279,10.87071325,79.49,79.4,10.87071325]
[1770825065585,10.87071325,79.49,79.401,10.77906347]
[1770825065973,37.78,79.517,79.429,10.77906347]
[1770825065974,9.73134788,79.507,79.429,10.77906347]
[1770825066175,10.87071325,79.51,79.429,10.77906347]
[1770825066580,11.43212342,79.523,79.429,10.77906347]
[1770825066581,10.87071325,79.49,79.429,10.77906347]
[1770825067082,11.3277,79.487,79.429,10.77906347]
[1770825067382,10.87071325,79.51,79.429,10.77906347]
[1770825067581,10.87071325,79.53,79.441,10.77342673]
[1770825067783,9.72725924,79.548,79.461,10.77342673]
[1770825068086,9.72725924,79.579,79.481,10.77342673]
[1770825068285,10.87071325,79.56,79.473,10.77342673]
[1770825068584,10.87071325,79.56,79.481,10.82403689]
[1770825068775,11.3177,79.558,79.481,10.82403689]
[1770825069282,11.3203,79.539,79.451,10.82389039]
[1770825069482,10.87071325,79.54,79.451,10.82389039]
[1770825069784,10.87071325,79.54,79.471,10.82389039]
[1770825070377,9.72725924,79.539,79.471,10.82389039]
[1770825070578,10.87071325,79.56,79.473,10.87718268]
[1770825070880,9.72725924,79.559,79.473,10.87718268]
[1770825071085,11.3193,79.546,79.481,11.3284]
[1770825071281,9.72725924,79.557,79.482,10.87703116]
[1770825071483,9.72725924,79.556,79.482,10.87703116]
[1770825071672,10.87071325,79.56,79.482,10.87703116]
[1770825071673,21.04525924,79.555,79.482,10.87703116]
[1770825071879,9.72725924,79.554,79.491,11.327]
[1770825072173,9.72725924,79.559,79.482,10.87703116]
[1770825072381,10.87071325,79.54,79.482,10.87703116]
[1770825073581,10.87071325,79.54,79.49,11.3271]
[1770825073885,11.3185,79.552,79.482,10.87703116]
[1770825074078,10.87071325,79.56,79.482,10.87703116]
[1770825074278,22.18521325,79.58,79.503,10.8699774]
[1770825074482,10.87071325,79.6,79.508,10.86471027]
[1770825074678,9.72725924,79.603,79.497,176.1861]
[1770825074679,10.87071325,79.61,79.521,10.86471027]
[1770825074877,9.72725924,79.625,79.553,11.3182]
[1770825075181,10.87071325,79.61,79.546,10.86471027]
[1770825075384,22.30283667,79.65,79.561,10.86456763]
[1770825075578,10.87071325,79.65,79.561,10.86456763]
[1770825075780,10.87071325,79.65,79.593,11.3124]
[1770825075978,10.87071325,79.65,79.561,10.86456763]
[1770825076183,10.87071325,79.63,79.561,10.86456763]
[1770825076681,10.87071325,79.61,79.511,10.98664859]
[1770825076887,10.87071325,79.61,79.532,10.98664859]
[1770825077082,10.87071325,79.59,79.491,10.98664859]
[1770825077491,10.87071325,79.59,79.535,11.3208]
[1770825077681,11.312,79.597,79.535,11.3208]
[1770825078179,11.3133,79.588,79.522,10.98649865]
[1770825078378,10.87071325,79.59,79.502,11.05124667]
[1770825078579,10.87071325,79.57,79.502,11.05124667]
[1770825079084,10.87071325,79.55,79.481,11.05124667]
[1770825079285,10.87071325,79.55,79.46,11.05109601]
[1770825079476,10.87071325,79.56,79.471,11.05109601]
[1770825079682,10.87071325,79.58,79.491,11.05109601]
[1770825080389,10.87071325,79.6,79.518,11.05109601]
[1770825080589,10.87071325,79.58,79.518,11.05109601]
[1770825080790,10.87071325,79.6,79.518,11.05109601]
[1770825080993,10.87071325,79.63,79.531,11.05835528]
[1770825081490,10.87071325,79.59,79.531,11.05835528]
[1770825081688,10.87071325,79.59,79.511,11.05823683]
[1770825081890,11.3134,79.588,79.511,11.05823683]
[1770825082085,10.87071325,79.59,79.511,11.05823683]
[1770825082386,10.87071325,79.61,79.481,11.05823683]
[1770825082387,10.87071325,79.57,79.481,11.05823683]
[1770825082579,10.87071325,79.59,79.501,11.01236716]
[1770825082986,100.36,79.609,79.501,11.01236716]
[1770825083192,10.87071325,79.59,79.501,11.01236716]
[1770825084993,10.87071325,79.59,79.52,10.99973049]
[1770825085197,10.87071325,79.61,79.52,10.99973049]
[1770825085680,10.87071325,79.61,79.5,10.99957826]
[1770825085681,10.87071325,79.56,79.5,10.99957826]
[1770825085884,10.87071325,79.56,79.461,10.99957826]
[1770825086090,11.3183,79.554,79.491,11.327]
[1770825086294,10.87071325,79.54,79.485,10.99957826]
[1770825086492,10.87071325,79.54,79.461,11.00657371]
[1770825087794,11.3203,79.539,79.481,11.3285]
[1770825088093,10.87071325,79.56,79.461,11.00657371]
[1770825088487,11.3184,79.553,79.491,11.00667869]
[1770825088687,10.87071325,79.58,79.491,11.00667869]
[1770825088995,10.87071325,79.56,79.491,11.00667869]
[1770825089390,10.87071325,79.56,79.461,11.00655653]
[1770825090098,11.3178,79.557,79.481,11.00655653]
[1770825090390,10.87071325,79.58,79.481,11.00655653]
[1770825090898,10.87071325,79.58,79.48,10.87071325]
[1770825090899,11.3166,79.566,79.507,11.3248]
[1770825091396,11.3166,79.566,79.513,11.3238]
[1770825092088,10.87071325,79.58,79.484,10.993512]
[1770825092295,10.87071325,79.56,79.484,10.993512]
[1770825092796,148.2,79.577,79.484,10.993512]
[1770825092797,11.3207,79.536,79.487,11.3276]
[1770825092998,11.3207,79.536,79.484,10.993512]
[1770825093202,11.3207,79.536,79.461,10.98182243]
[1770825093695,11.3207,79.536,79.398,176.4045]
[1770825093696,10.87071325,79.52,79.44,10.98170979]
[1770825094391,10.87071325,79.53,79.44,10.87071325]
[1770825094596,10.87071325,79.53,79.441,10.98276222]
[1770825095492,11.3234,79.517,79.458,11.3318]
[1770825095695,11.3234,79.517,79.441,10.98276222]
[1770825095898,10.87071325,79.53,79.459,10.98263977]
[1770825096891,10.87071325,79.51,79.433,10.97732716]
[1770825097096,10.87071325,79.51,79.42,21.87071325]
[1770825097097,10.87071325,79.49,79.423,10.97732716]
[1770825097393,10.87071325,79.49,79.441,11.3341]
[1770825097589,11.3252,79.505,79.442,10.97721916]
[1770825097784,10.87071325,79.51,79.442,10.97721916]
[1770825097991,11.3248,79.508,79.456,11.332]
[1770825098593,11.323,79.52,79.466,11.3306]
[1770825098894,10.87071325,79.53,79.467,10.92502803]
[1770825099395,22.6278,79.584,79.467,10.92502803]
[1770825099697,10.87071325,79.56,79.468,10.92493894]
[1770825099996,10.87071325,79.6,79.504,10.92493894]
[1770825100293,10.87071325,79.62,79.521,10.92493894]
[1770825100493,10.87071325,79.64,79.559,10.89335109]
[1770825100694,10.87071325,79.64,79.561,10.89335109]
[1770825101098,10.87071325,79.64,79.586,11.3135]
[1770825101296,159.6111205,79.677,79.559,10.89335109]
[1770825101297,10.87071325,79.62,79.559,10.89335109]
[1770825101491,10.87071325,79.62,79.56,11.3173]
[1770825101692,10.87071325,79.64,79.561,10.89325529]
[1770825101887,10.87071325,79.62,79.561,10.89325529]
[1770825102092,175.7942,79.675,79.525,156.14]
[1770825102093,10.87071325,79.64,79.562,10.89325529]
[1770825102698,10.87071325,79.62,79.562,10.89325529]
[1770825103201,11.309,79.619,79.562,10.89325529]
[1770825103400,10.87071325,79.64,79.562,10.89325529]
[1770825103696,11.3091,79.618,79.562,10.89325529]
[1770825103905,10.87071325,79.62,79.531,10.90121495]
[1770825104795,11.3104,79.609,79.552,11.3183]
[1770825104997,10.87071325,79.63,79.531,10.90121495]
[1770825105198,10.87071325,79.63,79.551,10.90269105]
[1770825105992,11.3107,79.607,79.543,11.3196]
[1770825106594,10.87071325,79.63,79.541,10.91508164]
[1770825106992,117.8,79.671,79.541,10.91508164]
[1770825106993,10.87071325,79.64,79.541,10.91508164]
[1770825107296,10.87071325,79.63,79.541,10.91497995]
[1770825107997,10.87071325,79.61,79.541,10.91497995]
[1770825108402,10.87071325,79.61,79.546,10.91497995]
[1770825108592,10.87071325,79.63,79.546,10.91497995]
[1770825108999,22.17811325,79.63,79.563,10.91551228]
[1770825109897,22.17811325,79.63,79.565,11.3165]
[1770825110204,22.17811325,79.63,79.566,10.91542175]
[1770825110505,22.17811325,79.63,79.571,11.3157]
[1770825111297,11.3061,79.639,79.579,10.91549197]
[1770825111498,10.87071325,79.65,79.579,10.91549197]
[1770825111703,9.69462018,79.669,79.579,10.91549197]
[1770825112008,10.87071325,79.67,79.597,10.91549197]
[1770825112697,10.87071325,79.65,79.572,10.90680338]
[1770825112909,9.69462018,79.669,79.572,10.90680338]
[1770825113210,10.87071325,79.67,79.581,10.90680338]
[1770825113799,10.87071325,79.69,79.606,10.90672384]
[1770825114209,10.87071325,79.69,79.611,11.31]
[1770825114407,10.87071325,79.67,79.606,10.90672384]
[1770825115004,11.3027,79.663,79.606,10.90672384]
[1770825115809,11.3038,79.655,79.607,11.3105]